[Event "2026 European Womens Championship"]
[Site "Batumi, GE"]
[Date "2026.05.30"]
[Round "6"]
[White "Shuqja, Klean"]
[Black "Kochavi, Dana"]
[Result "1-0"]
[Board "101"]
[TimeControl "5400+30"]
[WhiteFideId "4701585"]
[BlackFideId "2837137"]
[WhiteElo "2092"]
[BlackElo "2209"]
[WhiteTitle "WFM"]
[BlackTitle "FM"]
[WhiteClock "0:13:00"]
[BlackClock "0:29:56"]
[Variant "Standard"]

1. e4 {[%clk 1:26:40]}  c5 {[%clk 1:30:53]} 2. Nf3 {[%clk 1:26:48]}  Nc6 {[%clk 1:31:18]} 3. c3 {[%clk 1:26:59]}  d5 {[%clk 1:31:10]}
4. exd5 {[%clk 1:27:19]}  Qxd5 {[%clk 1:31:34]} 5. d4 {[%clk 1:27:16]}  Bg4 {[%clk 1:31:59]} 6. Be2 {[%clk 1:26:55]}  e6 {[%clk 1:31:48]}
7. Na3 {[%clk 1:21:18]}  cxd4 {[%clk 1:27:58]} 8. Nb5 {[%clk 1:19:34]}  Rc8 {[%clk 1:28:20]} 9. Nbxd4 {[%clk 1:16:57]}  Bc5 {[%clk 1:25:36]}
10. O-O {[%clk 1:13:14]}  Nge7 {[%clk 1:18:17]} 11. Nxc6 {[%clk 1:09:50]}  Qxd1 {[%clk 1:18:17]} 12. Rxd1 {[%clk 1:10:01]}  Nxc6 {[%clk 1:18:44]}
13. b4 {[%clk 1:01:46]}  Be7 {[%clk 1:13:40]} 14. Be3 {[%clk 1:00:45]}  Bf6 {[%clk 1:06:33]} 15. Rac1 {[%clk 0:59:14]}  e5 {[%clk 1:03:07]}
16. b5 {[%clk 0:47:33]}  Ne7 {[%clk 1:03:12]} 17. h3 {[%clk 0:44:47]}  Be6 {[%clk 1:02:54]} 18. Bxa7 {[%clk 0:40:57]}  Ra8 {[%clk 0:55:26]}
19. Bc5 {[%clk 0:39:02]}  Nd5 {[%clk 0:35:34]} 20. a3 {[%clk 0:34:16]}  Rc8 {[%clk 0:30:05]} 21. Bb4 {[%clk 0:31:19]}  Nxb4 {[%clk 0:24:38]}
22. axb4 {[%clk 0:30:27]}  Ke7 {[%clk 0:22:34]} 23. c4 {[%clk 0:26:31]}  Rhd8 {[%clk 0:22:48]} 24. c5 {[%clk 0:23:21]}  Rxd1+ {[%clk 0:13:57]}
25. Rxd1 {[%clk 0:19:10]}  Rd8 {[%clk 0:14:22]} 26. Rxd8 {[%clk 0:12:34]}  Kxd8 {[%clk 0:14:47]} 27. Nd2 {[%clk 0:11:52]}  Bg5 {[%clk 0:15:06]}
28. Nf3 {[%clk 0:07:34]}  Bf6 {[%clk 0:15:32]} 29. Bd3 {[%clk 0:07:17]}  Bd5 {[%clk 0:15:46]} 30. Nd2 {[%clk 0:06:50]}  Bg5 {[%clk 0:16:11]}
31. Ne4 {[%clk 0:01:11]}  Be7 {[%clk 0:12:51]} 32. Nc3 {[%clk 0:01:11]}  Be6 {[%clk 0:13:20]} 33. Be4 {[%clk 0:01:04]}  Kc7 {[%clk 0:12:35]}
34. Bd5 {[%clk 0:01:10]}  Bf5 {[%clk 0:12:10]} 35. Bxf7 {[%clk 0:01:23]}  Bg5 {[%clk 0:12:36]} 36. b6+ {[%clk 0:01:02]}  Kb8 {[%clk 0:12:13]}
37. b5 {[%clk 0:00:57]}  Bd7 {[%clk 0:12:03]} 38. Bc4 {[%clk 0:00:55]}  Be7 {[%clk 0:10:22]} 39. Ne4 {[%clk 0:01:06]}  h6 {[%clk 0:10:04]}
40. g4 {[%clk 0:00:37]}  Bd8 {[%clk 0:09:51]} 41. Nd6 {[%clk 0:25:34]}  Be7 {[%clk 0:39:47]} 42. Kg2 {[%clk 0:17:47]}  g6 {[%clk 0:38:50]}
43. Kf3 {[%clk 0:16:23]}  h5 {[%clk 0:37:38]} 44. Bf7 {[%clk 0:14:26]}  hxg4+ {[%clk 0:37:39]} 45. hxg4 {[%clk 0:14:51]}  g5 {[%clk 0:37:52]}
46. Bd5 {[%clk 0:13:53]}  Bc8 {[%clk 0:31:27]} 47. Nxc8 {[%clk 0:12:34]}  Kxc8 {[%clk 0:31:51]} 48. c6 {[%clk 0:12:43]}  Bc5 {[%clk 0:29:56]}
49. Be6+ {[%clk 0:13:00]} 1-0

[Event "2026 European Womens Championship"]
[Site "Batumi, GE"]
[Date "2026.05.30"]
[Round "6"]
[White "Nenova, Andzhelika"]
[Black "Bashylina, Luisa"]
[Result "1/2-1/2"]
[Board "102"]
[TimeControl "5400+30"]
[WhiteFideId "2939355"]
[BlackFideId "12983292"]
[WhiteElo "2072"]
[BlackElo "2208"]
[BlackTitle "WFM"]
[WhiteClock "0:14:53"]
[BlackClock "0:04:42"]
[Variant "Standard"]

1. e4 {[%clk 1:30:54]}  c5 {[%clk 1:30:56]} 2. Nf3 {[%clk 1:31:17]}  d6 {[%clk 1:31:23]} 3. d4 {[%clk 1:31:42]}  cxd4 {[%clk 1:31:49]}
4. Nxd4 {[%clk 1:32:07]}  Nf6 {[%clk 1:32:16]} 5. Nc3 {[%clk 1:32:29]}  Nc6 {[%clk 1:32:44]} 6. Bc4 {[%clk 1:32:49]}  e6 {[%clk 1:33:09]}
7. Be3 {[%clk 1:33:16]}  Bd7 {[%clk 1:33:21]} 8. Qe2 {[%clk 1:33:39]}  a6 {[%clk 1:33:42]} 9. Bb3 {[%clk 1:34:03]}  b5 {[%clk 1:33:39]}
10. a3 {[%clk 1:34:29]}  Na5 {[%clk 1:33:59]} 11. O-O {[%clk 1:34:35]}  Nxb3 {[%clk 1:26:06]} 12. cxb3 {[%clk 1:34:59]}  e5 {[%clk 1:23:25]}
13. Nc2 {[%clk 1:34:48]}  Be7 {[%clk 1:20:21]} 14. Bg5 {[%clk 1:33:12]}  Be6 {[%clk 1:19:12]} 15. Bxf6 {[%clk 1:29:43]}  Bxf6 {[%clk 1:17:33]}
16. Ne3 {[%clk 1:29:56]}  Bg5 {[%clk 1:02:00]} 17. Ned5 {[%clk 1:28:10]}  O-O {[%clk 1:01:10]} 18. g3 {[%clk 1:23:12]}  f5 {[%clk 0:58:47]}
19. exf5 {[%clk 1:22:41]}  Bxf5 {[%clk 0:55:39]} 20. Ne4 {[%clk 1:17:51]}  Rc8 {[%clk 0:46:51]} 21. Rfe1 {[%clk 1:13:20]}  Bxe4 {[%clk 0:31:32]}
22. Qxe4 {[%clk 1:13:44]}  Qe8 {[%clk 0:31:04]} 23. Re2 {[%clk 0:58:49]}  Qf7 {[%clk 0:28:02]} 24. Kg2 {[%clk 0:59:09]}  Rc5 {[%clk 0:27:36]}
25. Rd1 {[%clk 0:59:23]}  a5 {[%clk 0:26:39]} 26. h4 {[%clk 0:56:12]}  Bd8 {[%clk 0:24:41]} 27. Ne3 {[%clk 0:50:15]}  Be7 {[%clk 0:18:23]}
28. Rd5 {[%clk 0:49:10]}  h5 {[%clk 0:12:01]} 29. Red2 {[%clk 0:47:41]}  Rxd5 {[%clk 0:08:50]} 30. Nxd5 {[%clk 0:45:30]}  Bd8 {[%clk 0:08:35]}
31. a4 {[%clk 0:41:59]}  b4 {[%clk 0:07:42]} 32. Rc2 {[%clk 0:39:28]}  Qa7 {[%clk 0:07:03]} 33. f3 {[%clk 0:38:17]}  Bb6 {[%clk 0:05:50]}
34. Nxb6 {[%clk 0:35:45]}  Qxb6 {[%clk 0:06:18]} 35. Rc6 {[%clk 0:35:46]}  Qd4 {[%clk 0:04:13]} 36. Qxd4 {[%clk 0:19:53]}  exd4 {[%clk 0:04:42]}
37. Rxd6 {[%clk 0:14:53]} 1/2-1/2

[Event "2026 European Womens Championship"]
[Site "Batumi, GE"]
[Date "2026.05.30"]
[Round "6"]
[White "Rodriguez Redondo, Adhara"]
[Black "Akat, Elifnaz"]
[Result "1-0"]
[Board "103"]
[TimeControl "5400+30"]
[WhiteFideId "32065698"]
[BlackFideId "34560556"]
[WhiteElo "2200"]
[BlackElo "2061"]
[WhiteTitle "WFM"]
[BlackTitle "WFM"]
[WhiteClock "0:05:57"]
[BlackClock "0:15:03"]
[Variant "Standard"]

1. e4 {[%clk 1:30:57]}  c5 {[%clk 1:31:00]} 2. Nf3 {[%clk 1:31:19]}  d6 {[%clk 1:31:29]} 3. Bb5+ {[%clk 1:31:35]}  Nd7 {[%clk 1:31:56]}
4. O-O {[%clk 1:31:40]}  Ngf6 {[%clk 1:32:16]} 5. Re1 {[%clk 1:31:26]}  g6 {[%clk 1:30:52]} 6. c3 {[%clk 1:30:01]}  a6 {[%clk 1:30:43]}
7. Bf1 {[%clk 1:29:17]}  Ne5 {[%clk 1:29:37]} 8. h3 {[%clk 1:21:18]}  Bg7 {[%clk 1:26:56]} 9. d4 {[%clk 1:18:40]}  Nxf3+ {[%clk 1:26:22]}
10. Qxf3 {[%clk 1:18:55]}  cxd4 {[%clk 1:22:34]} 11. cxd4 {[%clk 1:18:44]}  Nd7 {[%clk 1:22:56]} 12. Be3 {[%clk 1:09:19]}  O-O {[%clk 1:15:49]}
13. Nc3 {[%clk 1:06:20]}  Rb8 {[%clk 1:07:44]} 14. a4 {[%clk 1:03:41]}  b6 {[%clk 1:07:43]} 15. Qd1 {[%clk 0:57:12]}  Bb7 {[%clk 1:06:05]}
16. Qd2 {[%clk 0:55:25]}  Nf6 {[%clk 0:55:45]} 17. Bd3 {[%clk 0:51:23]}  e5 {[%clk 0:46:58]} 18. d5 {[%clk 0:45:35]}  Ne8 {[%clk 0:46:14]}
19. Qc2 {[%clk 0:32:42]}  Bc8 {[%clk 0:45:52]} 20. Na2 {[%clk 0:31:34]}  a5 {[%clk 0:36:35]} 21. Nc3 {[%clk 0:30:10]}  f5 {[%clk 0:36:30]}
22. exf5 {[%clk 0:29:12]}  gxf5 {[%clk 0:36:57]} 23. f4 {[%clk 0:27:22]}  e4 {[%clk 0:27:33]} 24. Bf1 {[%clk 0:25:18]}  Bb7 {[%clk 0:27:26]}
25. Rad1 {[%clk 0:22:57]}  Nf6 {[%clk 0:27:37]} 26. Bb5 {[%clk 0:17:51]}  Rc8 {[%clk 0:27:41]} 27. Qf2 {[%clk 0:17:46]}  Rc5 {[%clk 0:27:43]}
28. Bxc5 {[%clk 0:16:00]}  bxc5 {[%clk 0:26:40]} 29. Bc4 {[%clk 0:14:03]}  Nd7 {[%clk 0:26:17]} 30. Ne2 {[%clk 0:11:35]}  Nb6 {[%clk 0:25:21]}
31. b3 {[%clk 0:10:33]}  Nxc4 {[%clk 0:25:05]} 32. bxc4 {[%clk 0:11:01]}  Ba6 {[%clk 0:25:21]} 33. Rc1 {[%clk 0:10:26]}  Qd7 {[%clk 0:25:40]}
34. Qh4 {[%clk 0:08:46]}  Bf6 {[%clk 0:20:54]} 35. Qg3+ {[%clk 0:08:42]}  Kh8 {[%clk 0:20:26]} 36. Qb3 {[%clk 0:08:50]}  Qg7 {[%clk 0:13:49]}
37. Kh2 {[%clk 0:08:54]}  Rg8 {[%clk 0:13:51]} 38. g3 {[%clk 0:07:19]}  Bd4 {[%clk 0:09:01]} 39. Rf1 {[%clk 0:07:27]}  h5 {[%clk 0:08:11]}
40. Qb6 {[%clk 0:05:45]}  Bc8 {[%clk 0:01:59]} 41. Qxd6 {[%clk 0:29:42]}  h4 {[%clk 0:29:42]} 42. Rb1 {[%clk 0:25:15]}  Kh7 {[%clk 0:25:00]}
43. Rb3 {[%clk 0:21:58]}  e3 {[%clk 0:23:50]} 44. Rg1 {[%clk 0:19:58]}  Qf7 {[%clk 0:19:19]} 45. Rb6 {[%clk 0:17:19]}  Qh5 {[%clk 0:19:29]}
46. Qe7+ {[%clk 0:16:16]}  Rg7 {[%clk 0:19:17]} 47. Qxh4 {[%clk 0:16:15]}  Qxh4 {[%clk 0:19:37]} 48. gxh4 {[%clk 0:16:39]}  Re7 {[%clk 0:17:20]}
49. h5 {[%clk 0:12:46]}  Ra7 {[%clk 0:14:52]} 50. Rgg6 {[%clk 0:12:07]}  Bd7 {[%clk 0:14:04]} 51. Rh6+ {[%clk 0:11:18]}  Kg7 {[%clk 0:14:17]}
52. Rbg6+ {[%clk 0:10:26]}  Kf8 {[%clk 0:14:44]} 53. Rh7 {[%clk 0:08:41]}  Rb7 {[%clk 0:15:12]} 54. Rg2 {[%clk 0:08:21]}  Bf6 {[%clk 0:14:45]}
55. Rh6 {[%clk 0:07:03]}  Bd4 {[%clk 0:14:55]} 56. Rhg6 {[%clk 0:07:01]}  Rb2 {[%clk 0:14:14]} 57. Nxd4 {[%clk 0:05:46]}  Rxg2+ {[%clk 0:14:37]}
58. Kxg2 {[%clk 0:06:01]}  cxd4 {[%clk 0:15:03]} 59. h6 {[%clk 0:05:57]} 1-0

[Event "2026 European Womens Championship"]
[Site "Batumi, GE"]
[Date "2026.05.30"]
[Round "6"]
[White "Calzetta Ruiz, Monica"]
[Black "Dimitrijevic, Aleksandra"]
[Result "1-0"]
[Board "104"]
[TimeControl "5400+30"]
[WhiteFideId "2204185"]
[BlackFideId "929239"]
[WhiteElo "2199"]
[BlackElo "2059"]
[WhiteTitle "WGM"]
[BlackTitle "WGM"]
[WhiteClock "0:32:25"]
[BlackClock "0:36:32"]
[Variant "Standard"]

1. e4 {[%clk 1:30:56]}  c5 {[%clk 1:26:58]} 2. Nf3 {[%clk 1:31:12]}  e6 {[%clk 1:27:21]} 3. d4 {[%clk 1:31:33]}  cxd4 {[%clk 1:27:46]}
4. Nxd4 {[%clk 1:31:52]}  Nc6 {[%clk 1:28:10]} 5. Nc3 {[%clk 1:32:05]}  d6 {[%clk 1:28:33]} 6. Be3 {[%clk 1:32:10]}  Nge7 {[%clk 1:28:01]}
7. f4 {[%clk 1:32:09]}  Nxd4 {[%clk 1:26:46]} 8. Qxd4 {[%clk 1:32:29]}  Nc6 {[%clk 1:27:09]} 9. Qd2 {[%clk 1:32:49]}  Be7 {[%clk 1:27:10]}
10. O-O-O {[%clk 1:32:37]}  a6 {[%clk 1:26:33]} 11. Kb1 {[%clk 1:30:30]}  b5 {[%clk 1:26:03]} 12. g4 {[%clk 1:27:26]}  Qc7 {[%clk 1:23:34]}
13. h4 {[%clk 1:24:53]}  Na5 {[%clk 1:22:27]} 14. g5 {[%clk 1:17:19]}  Bd7 {[%clk 1:12:39]} 15. Qd4 {[%clk 0:43:16]}  O-O {[%clk 0:57:01]}
16. h5 {[%clk 0:42:05]}  Nc6 {[%clk 0:56:17]} 17. Qd2 {[%clk 0:41:53]}  b4 {[%clk 0:53:55]} 18. Na4 {[%clk 0:40:26]}  Rab8 {[%clk 0:51:48]}
19. h6 {[%clk 0:40:42]}  Na5 {[%clk 0:50:43]} 20. Nb6 {[%clk 0:36:57]}  Bc6 {[%clk 0:46:28]} 21. hxg7 {[%clk 0:34:51]}  Rfd8 {[%clk 0:39:56]}
22. Bd3 {[%clk 0:33:49]}  Kxg7 {[%clk 0:35:26]} 23. Rxh7+ {[%clk 0:31:19]}  Kxh7 {[%clk 0:35:48]} 24. Qh2+ {[%clk 0:31:45]}  Kg7 {[%clk 0:36:07]}
25. Qh6+ {[%clk 0:32:05]}  Kg8 {[%clk 0:36:32]} 26. Rh1 {[%clk 0:32:25]} 1-0

[Event "2026 European Womens Championship"]
[Site "Batumi, GE"]
[Date "2026.05.30"]
[Round "6"]
[White "Hayrapetyan, Nvard"]
[Black "Maisuradze, Nino"]
[Result "1/2-1/2"]
[Board "105"]
[TimeControl "5400+30"]
[WhiteFideId "13316460"]
[BlackFideId "13601717"]
[WhiteElo "2057"]
[BlackElo "2198"]
[WhiteTitle "WFM"]
[BlackTitle "WGM"]
[WhiteClock "0:36:27"]
[BlackClock "0:30:03"]
[Variant "Standard"]

1. d4 {[%clk 1:30:59]}  Nf6 {[%clk 1:30:54]} 2. c4 {[%clk 1:31:23]}  c5 {[%clk 1:27:22]} 3. d5 {[%clk 1:31:28]}  e5 {[%clk 1:18:26]}
4. Nc3 {[%clk 1:29:39]}  d6 {[%clk 1:18:54]} 5. e4 {[%clk 1:29:33]}  Be7 {[%clk 1:18:59]} 6. Nf3 {[%clk 1:28:37]}  Nbd7 {[%clk 1:19:15]}
7. Be2 {[%clk 1:27:58]}  Nf8 {[%clk 1:19:30]} 8. O-O {[%clk 1:07:24]}  Ng6 {[%clk 1:19:17]} 9. Ne1 {[%clk 1:00:49]}  h5 {[%clk 1:17:04]}
10. Nd3 {[%clk 0:57:29]}  h4 {[%clk 1:14:57]} 11. h3 {[%clk 0:53:39]}  Bd7 {[%clk 1:13:55]} 12. Be3 {[%clk 0:39:38]}  Qc8 {[%clk 1:12:12]}
13. Kh2 {[%clk 0:38:59]}  a6 {[%clk 1:09:47]} 14. a4 {[%clk 0:38:53]}  b6 {[%clk 1:08:47]} 15. b3 {[%clk 0:35:43]}  Rb8 {[%clk 1:07:55]}
16. f4 {[%clk 0:34:23]}  exf4 {[%clk 1:08:10]} 17. Nxf4 {[%clk 0:34:33]}  Ne5 {[%clk 1:07:37]} 18. Nd3 {[%clk 0:34:56]}  Nxd3 {[%clk 1:06:45]}
19. Qxd3 {[%clk 0:34:32]}  Nh5 {[%clk 1:06:02]} 20. Bxh5 {[%clk 0:33:40]}  Rxh5 {[%clk 1:06:29]} 21. Qe2 {[%clk 0:31:53]}  Rh8 {[%clk 0:59:41]}
22. Qf3 {[%clk 0:30:08]}  f6 {[%clk 0:49:54]} 23. Bf4 {[%clk 0:24:50]}  g5 {[%clk 0:50:02]} 24. e5 {[%clk 0:19:27]}  gxf4 {[%clk 0:02:24]}
25. e6 {[%clk 0:19:41]}  Kd8 {[%clk 0:02:51]} 26. exd7 {[%clk 0:19:53]}  Qxd7 {[%clk 0:03:20]} 27. Rae1 {[%clk 0:19:00]}  Kc7 {[%clk 0:03:15]}
28. Re6 {[%clk 0:16:15]}  f5 {[%clk 0:02:37]} 29. Qxf4 {[%clk 0:16:17]}  Rbf8 {[%clk 0:03:02]} 30. a5 {[%clk 0:14:55]}  bxa5 {[%clk 0:02:28]}
31. Na4 {[%clk 0:14:19]}  Kb7 {[%clk 0:02:53]} 32. Rfe1 {[%clk 0:14:10]}  Rh7 {[%clk 0:03:01]} 33. Kh1 {[%clk 0:12:22]}  Rg7 {[%clk 0:02:35]}
34. Qf3 {[%clk 0:08:56]}  Bg5 {[%clk 0:02:21]} 35. Qc3 {[%clk 0:08:36]}  Bd8 {[%clk 0:01:59]} 36. Rxd6 {[%clk 0:07:53]}  Qxd6 {[%clk 0:02:14]}
37. Qxg7+ {[%clk 0:08:17]}  Bc7 {[%clk 0:02:38]} 38. Kg1 {[%clk 0:07:44]}  Qh2+ {[%clk 0:02:34]} 39. Kf1 {[%clk 0:08:03]}  Qf4+ {[%clk 0:01:52]}
40. Kg1 {[%clk 0:08:23]}  Qh2+ {[%clk 0:01:04]} 41. Kf1 {[%clk 0:08:38]}  Qf4+ {[%clk 0:29:42]} 42. Kg1 {[%clk 0:36:27]}  Qh2+ {[%clk 0:30:03]} 1/2-1/2

[Event "2026 European Womens Championship"]
[Site "Batumi, GE"]
[Date "2026.05.30"]
[Round "6"]
[White "Peycheva, Gergana"]
[Black "Tsirulnik, Maritsa"]
[Result "1-0"]
[Board "106"]
[TimeControl "5400+30"]
[WhiteFideId "2916711"]
[BlackFideId "14118688"]
[WhiteElo "2186"]
[BlackElo "2028"]
[WhiteTitle "FM"]
[BlackTitle "WFM"]
[WhiteClock "0:12:23"]
[BlackClock "0:01:29"]
[Variant "Standard"]

1. d4 {[%clk 1:30:57]}  Nf6 {[%clk 1:30:08]} 2. c4 {[%clk 1:31:10]}  e6 {[%clk 1:30:32]} 3. g3 {[%clk 1:31:02]}  d5 {[%clk 1:30:46]}
4. Bg2 {[%clk 1:31:09]}  Be7 {[%clk 1:30:40]} 5. Nf3 {[%clk 1:30:56]}  O-O {[%clk 1:30:57]} 6. O-O {[%clk 1:30:10]}  dxc4 {[%clk 1:30:19]}
7. Qc2 {[%clk 1:29:28]}  a6 {[%clk 1:30:40]} 8. a4 {[%clk 1:29:33]}  Bd7 {[%clk 1:27:05]} 9. Qxc4 {[%clk 1:29:29]}  Bc6 {[%clk 1:26:19]}
10. Bg5 {[%clk 1:29:00]}  b5 {[%clk 1:12:04]} 11. Qc2 {[%clk 1:23:29]}  Be4 {[%clk 1:06:40]} 12. Qc1 {[%clk 1:21:29]}  b4 {[%clk 1:04:55]}
13. Nbd2 {[%clk 1:20:05]}  Bd5 {[%clk 1:04:36]} 14. Bxf6 {[%clk 1:14:34]}  Bxf6 {[%clk 1:05:00]} 15. e4 {[%clk 1:14:59]}  Bb7 {[%clk 1:05:21]}
16. Qc4 {[%clk 1:01:36]}  a5 {[%clk 0:57:55]} 17. Rfd1 {[%clk 0:59:45]}  Nd7 {[%clk 0:53:46]} 18. Rac1 {[%clk 0:53:22]}  c5 {[%clk 0:51:03]}
19. dxc5 {[%clk 0:33:03]}  Bxb2 {[%clk 0:46:57]} 20. Rc2 {[%clk 0:30:15]}  Bc3 {[%clk 0:45:03]} 21. Nb1 {[%clk 0:24:30]}  Ba6 {[%clk 0:44:18]}
22. Qa2 {[%clk 0:24:55]}  Rb8 {[%clk 0:42:22]} 23. Rcc1 {[%clk 0:18:53]}  b3 {[%clk 0:37:40]} 24. Qa3 {[%clk 0:19:17]}  Bb4 {[%clk 0:37:58]}
25. Qb2 {[%clk 0:15:01]}  Qc7 {[%clk 0:32:10]} 26. Nd4 {[%clk 0:08:48]}  Nxc5 {[%clk 0:27:30]} 27. Nxb3 {[%clk 0:08:22]}  Nxa4 {[%clk 0:27:38]}
28. Qa2 {[%clk 0:01:26]}  Nc5 {[%clk 0:22:40]} 29. Nxc5 {[%clk 0:01:04]}  Bxc5 {[%clk 0:23:05]} 30. Nc3 {[%clk 0:00:45]}  Bb4 {[%clk 0:22:14]}
31. Nd5 {[%clk 0:00:41]}  Qe5 {[%clk 0:15:46]} 32. Nxb4 {[%clk 0:00:42]}  Rxb4 {[%clk 0:16:10]} 33. Ra1 {[%clk 0:00:55]}  a4 {[%clk 0:16:03]}
34. Qd2 {[%clk 0:00:55]}  Rb2 {[%clk 0:14:55]} 35. Qe3 {[%clk 0:01:12]}  Rb3 {[%clk 0:13:50]} 36. Qa7 {[%clk 0:01:18]}  Bb5 {[%clk 0:14:13]}
37. h4 {[%clk 0:00:57]}  g6 {[%clk 0:13:12]} 38. Bf1 {[%clk 0:00:46]}  Bc6 {[%clk 0:13:20]} 39. Bg2 {[%clk 0:01:07]}  Ra8 {[%clk 0:12:43]}
40. Qe7 {[%clk 0:00:55]}  Kg7 {[%clk 0:10:34]} 41. Rac1 {[%clk 0:01:19]}  Re8 {[%clk 0:22:40]} 42. Qa7 {[%clk 0:31:28]}  Rc3 {[%clk 0:16:14]}
43. f4 {[%clk 0:29:56]}  Rxc1 {[%clk 0:16:34]} 44. Rxc1 {[%clk 0:29:49]}  Qb5 {[%clk 0:16:37]} 45. Qd4+ {[%clk 0:29:27]}  Kg8 {[%clk 0:16:00]}
46. h5 {[%clk 0:29:07]}  Rb8 {[%clk 0:08:15]} 47. h6 {[%clk 0:28:34]}  Qb6 {[%clk 0:08:04]} 48. Rc5 {[%clk 0:28:22]}  f6 {[%clk 0:07:41]}
49. Kh2 {[%clk 0:26:58]}  Rb7 {[%clk 0:05:17]} 50. Qc3 {[%clk 0:26:06]}  Be8 {[%clk 0:04:31]} 51. e5 {[%clk 0:23:34]}  Ra7 {[%clk 0:04:38]}
52. exf6 {[%clk 0:21:28]}  Kf7 {[%clk 0:04:52]} 53. Bc6 {[%clk 0:21:26]}  Bxc6 {[%clk 0:04:38]} 54. Rxc6 {[%clk 0:21:50]}  Qf2+ {[%clk 0:04:51]}
55. Kh3 {[%clk 0:20:08]}  Qf1+ {[%clk 0:05:02]} 56. Kh2 {[%clk 0:19:42]}  Qe2+ {[%clk 0:04:46]} 57. Kh3 {[%clk 0:19:23]}  Qh5+ {[%clk 0:02:00]}
58. Kg2 {[%clk 0:19:49]}  Qd5+ {[%clk 0:01:40]} 59. Kh2 {[%clk 0:16:43]}  Qh5+ {[%clk 0:00:44]} 60. Kg1 {[%clk 0:14:28]}  Qd1+ {[%clk 0:00:38]}
61. Kf2 {[%clk 0:11:56]}  Rd7 {[%clk 0:00:59]} 62. Rc7 {[%clk 0:11:24]}  Rxc7 {[%clk 0:00:37]} 63. Qxc7+ {[%clk 0:11:48]}  Kxf6 {[%clk 0:00:17]}
64. Qg7+ {[%clk 0:12:00]}  Kf5 {[%clk 0:01:29]} 65. Qe5+ {[%clk 0:12:23]} 1-0

[Event "2026 European Womens Championship"]
[Site "Batumi, GE"]
[Date "2026.05.30"]
[Round "6"]
[White "Khurtsilava, Inga"]
[Black "Rusitashvili, Tea"]
[Result "1-0"]
[Board "107"]
[TimeControl "5400+30"]
[WhiteFideId "13600419"]
[BlackFideId "13640771"]
[WhiteElo "2175"]
[BlackElo "1929"]
[WhiteTitle "WGM"]
[BlackTitle "WCM"]
[WhiteClock "0:23:47"]
[BlackClock "0:01:17"]
[Variant "Standard"]

1. b3 {[%clk 1:30:48]}  d5 {[%clk 1:30:49]} 2. Bb2 {[%clk 1:31:12]}  c5 {[%clk 1:30:42]} 3. e3 {[%clk 1:31:25]}  Nf6 {[%clk 1:30:47]}
4. f4 {[%clk 1:31:35]}  g6 {[%clk 1:29:11]} 5. Nf3 {[%clk 1:30:52]}  Bg7 {[%clk 1:28:48]} 6. Bb5+ {[%clk 1:30:26]}  Nbd7 {[%clk 1:24:46]}
7. O-O {[%clk 1:27:56]}  O-O {[%clk 1:24:43]} 8. Qe1 {[%clk 1:23:58]}  a6 {[%clk 1:22:15]} 9. Bxd7 {[%clk 1:22:28]}  Bxd7 {[%clk 1:21:30]}
10. d3 {[%clk 1:22:46]}  Rc8 {[%clk 1:16:23]} 11. Nbd2 {[%clk 1:22:06]}  Bg4 {[%clk 1:10:06]} 12. Qh4 {[%clk 1:19:05]}  Bxf3 {[%clk 1:08:34]}
13. Nxf3 {[%clk 1:17:15]}  c4 {[%clk 1:06:23]} 14. Bd4 {[%clk 1:16:59]}  cxd3 {[%clk 1:05:18]} 15. cxd3 {[%clk 1:17:05]}  Rc2 {[%clk 1:03:50]}
16. f5 {[%clk 1:06:34]}  Nh5 {[%clk 0:49:37]} 17. g4 {[%clk 0:57:54]}  Bf6 {[%clk 0:48:59]} 18. Qh3 {[%clk 0:51:31]}  Ng7 {[%clk 0:47:41]}
19. Qh6 {[%clk 0:47:52]}  e5 {[%clk 0:32:29]} 20. Bxe5 {[%clk 0:45:10]}  Bxe5 {[%clk 0:31:40]} 21. Nxe5 {[%clk 0:44:52]}  Qd6 {[%clk 0:24:54]}
22. Nf3 {[%clk 0:42:04]}  Ne8 {[%clk 0:22:46]} 23. Ng5 {[%clk 0:36:54]}  Nf6 {[%clk 0:22:33]} 24. Rf3 {[%clk 0:34:23]}  Rfc8 {[%clk 0:19:23]}
25. Raf1 {[%clk 0:34:07]}  Rc1 {[%clk 0:17:00]} 26. Nxf7 {[%clk 0:31:02]}  Qb4 {[%clk 0:07:55]} 27. d4 {[%clk 0:26:24]}  Rxf1+ {[%clk 0:06:15]}
28. Rxf1 {[%clk 0:26:47]}  Kxf7 {[%clk 0:03:00]} 29. fxg6+ {[%clk 0:27:09]}  hxg6 {[%clk 0:01:57]} 30. g5 {[%clk 0:24:20]}  Rc6 {[%clk 0:01:01]}
31. Qh7+ {[%clk 0:24:03]}  Ke8 {[%clk 0:00:43]} 32. gxf6 {[%clk 0:23:17]}  Qf8 {[%clk 0:00:38]} 33. Qxb7 {[%clk 0:22:49]}  Rxf6 {[%clk 0:00:39]}
34. Qc8+ {[%clk 0:22:56]}  Ke7 {[%clk 0:00:54]} 35. Qxf8+ {[%clk 0:23:20]}  Rxf8 {[%clk 0:01:17]} 36. Rxf8 {[%clk 0:23:47]} 1-0

[Event "2026 European Womens Championship"]
[Site "Batumi, GE"]
[Date "2026.05.30"]
[Round "6"]
[White "Avetisyan, Ani"]
[Black "Starosta, Martyna"]
[Result "1-0"]
[Board "108"]
[TimeControl "5400+30"]
[WhiteFideId "13319035"]
[BlackFideId "21818754"]
[WhiteElo "2052"]
[BlackElo "2175"]
[BlackTitle "WIM"]
[WhiteClock "0:21:55"]
[BlackClock "0:02:18"]
[Variant "Standard"]

1. d4 {[%clk 1:30:48]}  d5 {[%clk 1:30:35]} 2. c4 {[%clk 1:30:59]}  e6 {[%clk 1:30:59]} 3. Nc3 {[%clk 1:31:22]}  Nf6 {[%clk 1:31:06]}
4. cxd5 {[%clk 1:31:25]}  exd5 {[%clk 1:31:29]} 5. Bg5 {[%clk 1:31:51]}  Be6 {[%clk 1:31:21]} 6. e3 {[%clk 1:31:59]}  Nbd7 {[%clk 1:30:20]}
7. Bd3 {[%clk 1:32:05]}  c6 {[%clk 1:29:37]} 8. h3 {[%clk 1:30:10]}  Be7 {[%clk 1:25:12]} 9. Nge2 {[%clk 1:27:24]}  Nh5 {[%clk 1:19:00]}
10. Bxe7 {[%clk 1:27:22]}  Qxe7 {[%clk 1:19:21]} 11. Qc2 {[%clk 1:18:01]}  g6 {[%clk 1:17:19]} 12. O-O-O {[%clk 1:13:58]}  O-O-O {[%clk 1:16:07]}
13. Kb1 {[%clk 1:12:09]}  Kb8 {[%clk 1:16:20]} 14. g4 {[%clk 1:09:51]}  Ng7 {[%clk 1:14:12]} 15. Nf4 {[%clk 1:02:00]}  h5 {[%clk 1:12:37]}
16. f3 {[%clk 1:01:39]}  Nb6 {[%clk 1:07:54]} 17. Rde1 {[%clk 0:54:12]}  hxg4 {[%clk 1:01:55]} 18. hxg4 {[%clk 0:54:18]}  Rxh1 {[%clk 0:57:55]}
19. Rxh1 {[%clk 0:54:35]}  Bc8 {[%clk 0:54:05]} 20. Qf2 {[%clk 0:51:33]}  Ne8 {[%clk 0:48:39]} 21. Rh7 {[%clk 0:47:01]}  Qf6 {[%clk 0:42:03]}
22. Qg3 {[%clk 0:44:19]}  Nd6 {[%clk 0:40:19]} 23. g5 {[%clk 0:42:54]}  Qe7 {[%clk 0:38:59]} 24. e4 {[%clk 0:43:08]}  dxe4 {[%clk 0:32:03]}
25. fxe4 {[%clk 0:42:53]}  Qe8 {[%clk 0:28:15]} 26. b3 {[%clk 0:29:14]}  Ka8 {[%clk 0:27:34]} 27. Bc2 {[%clk 0:28:37]}  a6 {[%clk 0:20:10]}
28. Qg2 {[%clk 0:26:22]}  Qf8 {[%clk 0:16:37]} 29. Nd3 {[%clk 0:25:13]}  Ne8 {[%clk 0:08:10]} 30. Qf2 {[%clk 0:24:24]}  f5 {[%clk 0:03:57]}
31. d5 {[%clk 0:21:59]}  cxd5 {[%clk 0:03:09]} 32. Qxb6 {[%clk 0:22:11]}  Rd6 {[%clk 0:03:29]} 33. Qc5 {[%clk 0:22:09]}  Kb8 {[%clk 0:03:01]}
34. e5 {[%clk 0:21:12]}  Qg8 {[%clk 0:02:12]} 35. exd6 {[%clk 0:21:24]}  Qxh7 {[%clk 0:02:36]} 36. Nxd5 {[%clk 0:21:29]}  Qh1+ {[%clk 0:01:52]}
37. Kb2 {[%clk 0:21:55]}  Qh8+ {[%clk 0:02:15]} 38. Nf6 {[%clk 0:21:53]}  Nxf6 {[%clk 0:02:18]} 39. Qe5 {[%clk 0:21:55]} 1-0